bitfinex-derivatives/quotes_ETHF0:USTF0_20250911
["timestamp","ask_amount","ask_price","bid_price","bid_amount"]
[1757633893882,0.207,4458.7,4458.6,0.7112]
[1757633894071,0.433,4458.7,4458.6,0.7112]
[1757633894685,0.9508,4458.7,4458.6,0.7112]
[1757633895884,0.628,4458.7,4458.6,0.7112]
[1757633896383,3.2078,4458.8,4458.7,0.7112]
[1757633896779,3.4338,4458.8,4458.7,0.7112]
[1757633897579,3.6408,4458.8,4458.7,0.7112]
[1757633898584,3.9636,4458.8,4458.7,0.7112]
[1757633898788,4.1586,4458.8,4458.7,0.7112]
[1757633899385,4.1586,4458.8,4458.1,0.3056]
[1757633901680,3.2078,4458.3,4458.2,0.5165]
[1757633901886,3.8358,4458.3,4458.2,0.5165]
[1757633902291,4.1586,4458.3,4458.2,0.5165]
[1757633903496,0.9508,4458.3,4458.2,0.7112]
[1757633903788,3.2078,4458.8,4458.5,0.1233]
[1757633903993,3.4148,4458.8,4458.7,0.7112]
[1757633904183,4.1586,4458.8,4458.7,0.7112]
[1757633907087,3.9326,4458.8,4458.7,0.7112]
[1757633907285,4.1586,4458.8,4458.7,0.7112]
[1757633907596,3.8358,4458.8,4458.7,0.7112]
[1757633908293,4.1435,4458.8,4458.7,0.7112]
[1757633909495,4.1435,4458.8,4458.7,0.5165]
[1757633911396,4.1435,4458.8,4458.7,0.7126]
[1757633917298,4.14269703,4458.8,4458.7,0.7126]
[1757633920902,4.14269703,4458.8,4458.7,0.5165]
[1757633921899,4.14269703,4458.8,4458.7,0.7126]
[1757633924014,0.1974,4459.2,4459.1,0.7025]
[1757633924307,0.4234,4459.2,4459.1,0.7025]
[1757633924513,0.9445,4459.2,4459.1,0.7025]
[1757633926311,0.9445,4459.2,4458.6,0.3025]
[1757633930609,0.7185,4459.2,4459.1,0.5064]
[1757633930816,0.9445,4459.2,4459.1,0.7025]
[1757633934318,0.9445,4459.2,4459.1,0.5064]
[1757633937722,0.9445,4459.2,4458.6,0.3083]
[1757633937912,0.2997,4459.1,4458.6,0.53257]
[1757633938119,0.7291,4458.7,4458.6,0.5078]
[1757633939316,0.7291,4458.7,4458.6,0.7091]
[1757633942126,0.7291,4458.7,4458.6,0.3083]
[1757633943022,0.9551,4458.7,4458.6,0.5078]
[1757633944120,0.7291,4458.7,4458.6,0.5078]
[1757633944425,0.9551,4458.7,4458.6,0.5078]
[1757633945527,0.7291,4458.7,4458.6,0.5078]
[1757633948923,0.9551,4458.7,4458.6,0.5078]
[1757633949628,0.9551,4458.7,4458.6,0.3083]
[1757633952129,0.9551,4458.7,4458.6,0.5078]
[1757633954230,0.7291,4458.7,4458.6,0.5078]
[1757633954419,0.9551,4458.7,4458.6,0.5078]
[1757633955621,0.9551,4458.7,4458.6,0.7091]
[1757633956234,0.7291,4458.7,4458.6,0.7091]
[1757633956734,0.9551,4458.7,4458.6,0.7091]
[1757633958928,0.7291,4458.7,4458.6,0.7091]
[1757633959133,0.9551,4458.7,4458.6,0.7091]
[1757633960933,0.7291,4458.7,4458.6,0.7091]
[1757633961232,0.9551,4458.7,4458.6,0.7091]
[1757633968838,0.7291,4458.7,4458.6,0.7091]
[1757633969137,0.9551,4458.7,4458.6,0.7091]
[1757633970630,0.7291,4458.7,4458.6,0.7091]
[1757633970835,0.6554,4458.7,4458.6,0.7091]
[1757633971438,0.4294,4458.7,4458.6,0.7091]
[1757633971636,0.6554,4458.7,4458.6,0.7091]
[1757633972038,0.9653,4458.7,4458.6,0.7091]
[1757633972535,0.7393,4458.7,4458.6,0.7091]
[1757633972728,0.9653,4458.7,4458.6,0.7091]
[1757633975439,0.7393,4458.7,4458.6,0.7091]
[1757633975638,0.9653,4458.7,4458.6,0.7091]
[1757633977544,0.7393,4458.7,4458.6,0.7091]
[1757633977742,0.9653,4458.7,4458.6,0.7091]
[1757633977946,0.7393,4458.7,4458.6,0.7091]
[1757633978242,0.9653,4458.7,4458.6,0.7091]
[1757633981949,0.4294,4458.7,4458.6,0.7091]
[1757633982243,3.2078,4459.1,4459.0,0.543]
[1757633982443,3.4338,4459.1,4459.0,0.8397]
[1757633982650,3.4338,4459.1,4459.0,1.06396]
[1757633982848,3.4338,4459.1,4459.0,0.8397]
[1757633983452,0.226,4459.1,4459.0,0.8397]
[1757633987057,3.712,4459.6,4459.5,0.543]
[1757633987258,4.1406,4459.6,4459.5,0.4978]
[1757633989166,3.9146,4459.6,4459.5,0.4978]
[1757633989364,4.1406,4459.6,4459.5,0.4978]
[1757633991767,0.074,4459.5,4459.0,0.4235]
[1757633991960,0.7068,4459.0,4458.9,0.7129]
[1757633992868,0.3969,4459.0,4458.9,0.7129]
[1757633993973,0.1943,4459.0,4458.9,0.7129]
[1757633996674,0.7068,4459.0,4458.9,0.7129]
[1757633996869,0.7068,4459.0,4458.9,0.4978]
[1757633997175,0.8234,4459.0,4458.6,0.2967]
[1757633997669,1.0494,4459.0,4458.6,0.317]
[1757633998079,1.0494,4459.0,4458.5,0.1192]
[1757633998266,1.0494,4459.0,4458.6,0.317]
[1757633998775,0.9328,4459.0,4458.6,0.317]
[1757633999861,0.9328,4459.0,4458.5,0.1192]
[1757634000068,1.0499,4459.0,4458.5,0.1192]
[1757634000469,1.0499,4459.0,4458.6,0.317]
[1757634000875,1.0499,4459.0,4458.5,0.1192]
[1757634001274,1.0499,4459.0,4458.6,0.317]
[1757634001476,0.3226,4458.9,4458.4,0.317]
[1757634001669,0.7341,4458.5,4458.4,0.317]
[1757634002266,0.7341,4458.5,4458.4,0.5251]
[1757634003675,0.7341,4458.5,4458.4,0.7354]
[1757634003874,0.4115,4458.5,4458.4,0.7354]
[1757634004179,0.7341,4458.5,4458.4,0.7354]
[1757634005277,3.9419,4459.1,4459.0,0.5251]
[1757634005482,4.1679,4459.1,4459.0,0.5251]
[1757634007179,3.9419,4459.1,4459.0,0.5251]
[1757634007381,4.1679,4459.1,4459.0,0.5251]
[1757634007681,4.1679,4459.1,4458.5,0.1195]
[1757634007881,4.1679,4459.1,4458.6,0.317]
[1757634008586,3.6193,4459.1,4459.0,0.2081]
[1757634008883,3.8453,4459.1,4459.0,0.8549]
[1757634009182,4.1679,4459.1,4459.0,0.8549]
[1757634009369,0.1171,4459.0,4458.6,0.317]
[1757634009575,0.7341,4458.7,4458.6,0.5251]
[1757634009880,0.7341,4458.7,4458.6,0.317]
[1757634010577,0.7341,4458.7,4458.6,0.5251]
[1757634011383,0.7341,4458.7,4458.6,0.317]
[1757634011384,0.9601,4458.7,4458.6,0.317]
[1757634011881,0.9601,4458.7,4458.6,0.5251]
[1757634013479,0.7341,4458.7,4458.6,0.7354]
[1757634013782,0.9601,4458.7,4458.6,0.7354]
[1757634018789,0.7341,4459.1,4459.0,0.8549]
[1757634018994,4.1679,4459.1,4459.0,0.8549]
[1757634019187,4.1679,4459.1,4459.0,0.5251]
[1757634019384,4.1679,4459.1,4459.0,0.317]
[1757634021587,3.9419,4459.1,4459.0,0.317]
[1757634021794,4.1679,4459.1,4459.0,0.317]
[1757634023692,0.117,4459.0,4458.6,0.317]
[1757634023898,0.7341,4458.7,4458.4,3.2078]
[1757634024199,0.5348,4458.7,4458.6,0.7354]
[1757634024587,0.4382,4458.7,4458.6,0.7354]
[1757634024793,0.7608,4458.7,4458.6,0.7354]
[1757634024993,0.9601,4458.7,4458.6,0.7354]
[1757634030904,0.7341,4458.7,4458.6,0.7354]
[1757634032902,0.5348,4458.7,4458.6,0.7354]
[1757634033107,3.2078,4459.6,4459.1,0.7102]
[1757634033309,3.2078,4459.6,4459.0,0.1262]
[1757634033310,3.4222,4459.6,4459.5,0.8364]
[1757634033505,3.9427,4459.6,4459.5,0.8364]
[1757634033698,4.1545,4459.6,4459.5,0.8364]
[1757634033902,3.9285,4459.6,4459.5,0.8364]
[1757634034103,4.1545,4459.6,4459.5,0.8364]
[1757634035308,3.9285,4459.6,4459.5,0.8364]
[1757634035512,4.1545,4459.6,4459.5,0.8364]
[1757634035713,3.9285,4459.6,4459.5,0.8364]
[1757634035914,4.1545,4459.6,4459.5,0.8364]
[1757634038716,3.9285,4459.6,4459.5,0.8364]
[1757634038915,4.1545,4459.6,4459.5,0.8364]
[1757634039310,3.9285,4459.6,4459.5,0.8364]
[1757634039517,4.1545,4459.6,4459.5,0.8364]
[1757634039717,3.9285,4459.6,4459.5,0.8364]
[1757634039916,4.1545,4459.6,4459.5,0.8364]
[1757634040611,3.9285,4459.6,4459.5,0.8364]
[1757634040812,4.1545,4459.6,4459.5,0.8364]
[1757634041016,4.1545,4459.6,4459.5,0.7102]
[1757634041711,4.1545,4459.6,4459.5,0.3022]
[1757634041910,3.9285,4459.6,4459.5,0.3022]
[1757634042118,4.1545,4459.6,4459.5,0.3022]
[1757634043418,3.9285,4459.6,4459.5,0.3022]
[1757634043616,4.1545,4459.6,4459.5,0.3022]
[1757634044613,0.7207,4458.8,4458.7,0.3022]
[1757634044819,0.9467,4458.8,4458.7,0.3022]
[1757634045413,0.9467,4458.8,4458.1,3.2078]
[1757634045615,0.2144,4458.3,4458.2,0.93449]
[1757634045816,0.7207,4458.3,4458.2,0.7102]
[1757634051413,0.9467,4458.3,4457.7,42.79176921]
[1757634051609,0.7207,4457.9,4457.8,0.7102]
[1757634052422,0.7207,4457.9,4457.8,0.5126]
[1757634060127,0.7207,4457.9,4457.1,3.2078]
[1757634060327,0.3432,4458.0,4457.1,3.2078]
[1757634060328,0.2098,4457.3,4457.2,0.7115]
[1757634063421,0.226,4457.5,4457.3,0.3055]
[1757634063622,0.226,4457.5,4457.4,0.406]
[1757634063919,0.226,4457.5,4457.4,0.7115]
[1757634068327,0.4358,4457.5,4457.4,0.7115]
[1757634069731,0.9281,4457.5,4457.4,0.7115]
[1757634071438,0.7021,4457.5,4457.4,0.7115]
[1757634075335,0.4095,4457.5,4457.4,0.7115]
[1757634080638,0.7021,4457.5,4457.4,0.7115]
[1757634088848,0.2028,4458.0,4457.9,0.7212]
[1757634089040,1.17024,4458.0,4457.9,0.7212]
[1757634089753,0.9459,4458.0,4457.9,0.5161]
[1757634090048,0.9459,4458.0,4457.9,0.3075]
[1757634091041,0.3103,4457.9,4457.3,0.3075]
[1757634091246,0.7199,4457.4,4457.3,0.5161]
[1757634091844,0.7199,4457.4,4457.3,0.7212]
[1757634093954,0.4096,4457.4,4457.3,0.7212]
[1757634094256,0.7199,4457.4,4457.3,0.7212]
[1757634094551,0.7199,4457.4,4457.3,0.5161]
[1757634094752,0.4096,4457.4,4457.2,1.61504416]
[1757634094958,0.7199,4457.3,4457.2,0.3075]
[1757634095257,0.7199,4457.3,4457.2,0.5161]
[1757634095847,0.7199,4457.3,4457.2,0.7212]
[1757634096253,0.6356,4457.3,4457.2,0.7212]
[1757634096956,0.2028,4457.3,4457.2,0.7212]
[1757634097154,0.226,4457.4,4457.2,0.7212]
[1757634097351,0.226,4457.4,4457.3,0.7212]
[1757634098251,3.5181,4457.6,4457.3,0.7212]
[1757634098454,3.5181,4457.6,4457.5,0.1216]
[1757634098655,3.9469,4457.6,4457.5,0.8428]
[1757634098958,4.1537,4457.6,4457.5,0.8428]
[1757634099648,3.9277,4457.6,4457.5,0.8428]
[1757634100158,4.1537,4457.6,4457.5,0.8428]
[1757634101356,3.8434,4457.6,4457.1,1.92254416]
[1757634101556,0.7199,4457.2,4457.1,2.02874416]
[1757634101756,0.7199,4457.2,4457.1,0.4137]
[1757634101953,0.7199,4457.2,4457.1,0.7212]
[1757634102257,0.7199,4457.2,4457.1,2.33624416]
[1757634103351,0.7199,4457.2,4457.1,0.7212]
[1757634103757,0.7199,4457.2,4457.1,0.5161]
[1757634103960,0.7199,4457.2,4457.1,0.3075]
[1757634105255,0.7199,4457.2,4457.1,0.6155848]
[1757634105452,0.7199,4457.2,4457.1,0.8241848]
[1757634107257,0.7199,4457.2,4457.1,0.6155848]
[1757634108159,0.7199,4457.2,4457.1,0.8241848]
[1757634109158,0.7199,4457.2,4457.1,0.6155848]
[1757634109965,0.94426,4457.2,4457.1,0.3080848]
[1757634110166,0.94426,4457.2,4457.1,0.30793936]
[1757634110756,0.7199,4457.2,4457.1,0.30793936]
[1757634112160,0.7199,4457.2,4457.1,0.82403936]
[1757634113056,0.9459,4457.2,4457.1,0.82403936]
[1757634113663,0.9459,4457.2,4457.1,0.30793936]
[1757634114364,0.7199,4457.2,4457.1,0.30793936]
[1757634114670,0.9459,4457.2,4457.1,0.30793936]
[1757634115863,0.9459,4457.2,4457.1,0.61543936]
[1757634116363,0.9459,4457.2,4457.1,0.30793936]
[1757634117861,0.9459,4457.2,4457.1,0.31124803]
[1757634119463,0.9459,4457.2,4457.1,0.60544803]
[1757634120569,3.5108,4457.6,4457.1,1.01774803]
[1757634120769,3.9357,4457.6,4457.5,0.5013]
[1757634120968,4.1617,4457.6,4457.5,0.81254803]
[1757634121664,4.1617,4457.6,4457.5,0.31124803]
[1757634124468,8.67976972,4457.6,4457.5,0.31124803]
[1757634132376,8.67976972,4457.6,4457.1,0.2942]
[1757634132577,0.7279,4457.2,4457.1,0.2942]
[1757634132871,0.9539,4457.2,4457.1,0.2942]
[1757634135273,0.9539,4457.2,4457.1,0.5013]
[1757634138675,0.9539,4457.2,4457.1,0.7065]
[1757634139182,3.2078,4457.6,4457.5,0.1251]
[1757634139377,4.17919745,4457.6,4457.5,0.8316]
[1757634139678,4.69589745,4457.6,4457.5,0.8316]
[1757634140478,4.69589745,4457.6,4457.5,0.5013]
[1757634140680,4.69589745,4457.6,4457.5,0.2942]
[1757634140877,4.69589745,4457.6,4457.1,0.2942]
[1757634141083,0.7279,4457.2,4457.1,0.5013]
[1757634141281,0.9539,4457.2,4457.1,0.5013]
[1757634141678,0.9539,4457.2,4457.1,0.7065]
[1757634142072,0.9539,4457.2,4457.1,0.5013]
[1757634142277,0.6509,4457.2,4456.7,0.2942]
[1757634142478,3.9357,4456.8,4456.7,0.5013]
[1757634142684,4.1617,4456.8,4456.7,0.7065]
[1757634145881,3.419,4456.8,4456.7,0.7065]
[1757634146081,3.4338,4456.8,4456.7,0.7065]
[1757634146384,3.645,4456.8,4456.7,0.7065]
[1757634146585,3.948,4456.8,4456.7,0.7065]
[1757634149387,3.419,4456.8,4456.7,0.7065]
[1757634149589,3.4338,4456.8,4456.7,0.7065]
[1757634150188,3.646,4456.8,4456.7,0.7065]
[1757634151585,3.4338,4456.8,4456.7,0.7065]
[1757634153388,3.2078,4456.8,4456.7,0.7065]
[1757634153579,3.2078,4456.8,4456.7,4.93087999]
[1757634153785,3.2078,4456.8,4456.7,4.7065]
[1757634155592,0.226,4456.9,4456.8,0.7264]
[1757634155780,3.2078,4457.4,4456.8,0.7264]
[1757634155986,0.6346,4457.3,4457.2,0.4082]
[1757634156184,0.9506,4457.3,4457.2,0.7264]
[1757634156682,0.7246,4457.3,4457.2,0.7264]
[1757634156882,0.9506,4457.3,4457.2,0.7264]
[1757634158292,0.2122,4457.3,4457.2,0.7264]
[1757634158495,0.4382,4457.3,4457.2,0.7264]
[1757634159295,0.2122,4457.3,4457.2,0.7264]
[1757634159595,0.4382,4457.3,4457.2,0.7264]
[1757634161292,0.7542,4457.3,4457.2,0.7264]
[1757634161794,0.9506,4457.3,4457.2,0.7264]
[1757634163295,0.6346,4457.3,4457.2,0.7264]
[1757634163689,0.226,4457.3,4457.2,0.4082]
[1757634164290,0.226,4457.3,4457.2,0.7264]
[1757634164994,0.226,4457.3,4457.2,0.4082]
[1757634165595,0.226,4457.3,4457.2,0.7264]
[1757634166895,3.2078,4457.4,4457.2,0.4082]
[1757634167096,0.226,4457.3,4457.2,0.7264]
[1757634167794,3.2078,4457.4,4457.2,0.7264]
[1757634168097,3.2078,4457.9,4457.8,0.7264]
[1757634168296,3.4338,4457.9,4457.8,0.7264]
[1757634168497,3.646,4457.9,4457.8,0.7264]
[1757634169399,3.962,4457.9,4457.8,0.7264]
[1757634169592,4.1584,4457.9,4457.8,0.7264]
[1757634174793,3.6164,4457.9,4457.8,0.7264]
[1757634175102,3.8424,4457.9,4457.8,0.7264]
[1757634175402,3.9324,4457.9,4457.8,0.7264]
[1757634175601,3.2078,4457.9,4457.8,0.7264]
[1757634177210,3.42,4457.9,4457.8,0.7264]
[1757634178302,4.15,4457.9,4457.8,0.5134]
[1757634181012,4.15,4457.9,4457.8,0.7207]
[1757634185218,4.15,4457.9,4457.6,0.3098]
[1757634185612,4.15,4457.9,4457.8,0.713]
[1757634186218,3.924,4457.9,4457.8,0.713]
[1757634186418,4.15,4457.9,4457.8,0.713]
[1757634190115,3.924,4457.9,4457.8,0.713]
[1757634190314,3.2078,4458.4,4458.0,0.1289]
[1757634190512,3.4338,4458.4,4458.3,0.713]
[1757634190708,3.2078,4458.4,4458.3,0.713]
[1757634191816,3.2078,4458.4,4458.3,41.513]
[1757634194605,3.5146,4459.0,4458.6,0.3098]
[1757634194813,3.4057,4459.0,4458.9,0.713]
[1757634195119,3.9097,4459.0,4458.9,0.713]
[1757634198121,3.6029,4459.0,4458.9,0.713]
[1757634198319,0.3951,4459.0,4458.9,0.713]
[1757634199119,0.1979,4459.0,4458.9,0.713]
[1757634199414,0.226,4459.2,4459.1,0.713]
[1757634199613,0.4239,4459.2,4459.1,0.713]
[1757634199819,0.1979,4459.2,4459.1,0.713]
[1757634201216,3.7406,4459.5,4459.1,0.713]
[1757634201427,3.9385,4459.5,4459.4,0.4032]
[1757634201733,0.7019,4459.9,4459.8,0.5171]
[1757634201921,0.7019,4459.9,4459.8,0.713]
[1757634202229,0.7019,4459.9,4459.8,0.5057]
[1757634202726,0.7019,4459.9,4459.8,0.3098]
[1757634202922,0.7019,4459.9,4459.8,0.5057]
[1757634204022,0.3068,4459.8,4459.3,0.3098]
[1757634204228,0.7019,4459.4,4459.0,0.3098]
[1757634204417,0.9269,4459.4,4459.0,0.3098]
[1757634204617,0.1178,4459.0,4458.9,0.225]
[1757634204824,0.8197,4459.0,4458.9,0.225]
[1757634206033,0.8197,4459.0,4458.5,3.3367]
[1757634206222,0.3068,4458.9,4458.5,3.3367]
[1757634206424,0.7019,4458.7,4458.6,0.713]
[1757634209634,0.1979,4458.7,4458.6,0.713]
[1757634213736,0.7307,4458.7,4458.6,0.713]
[1757634214431,0.1979,4458.7,4458.6,0.713]
[1757634216538,0.1979,4458.7,4458.6,0.938]
[1757634219436,3.5071,4459.5,4458.7,0.3093]
[1757634219734,0.7376,4459.3,4458.6,0.225]
[1757634219932,0.7376,4459.3,4458.7,0.3093]
[1757634221045,0.7376,4459.3,4459.2,0.735]
[1757634223543,0.7376,4459.3,4459.2,0.52]
[1757634226541,0.7376,4459.3,4459.2,0.735]
[1757634226738,0.4201,4459.3,4459.2,0.735]
[1757634226940,0.2048,4459.3,4459.2,0.735]
[1757634227134,0.3175,4460.2,4459.3,0.22425]
[1757634227331,0.3175,4459.9,4459.8,3.2078]
[1757634227547,0.3175,4459.9,4459.8,3.4338]
[1757634227735,0.1268,4460.0,4459.8,44.45802]
[1757634228338,0.1268,4460.0,4459.8,44.63986403]
[1757634228743,0.1268,4460.0,4459.8,44.41564403]
[1757634229044,0.1268,4460.5,4459.8,44.41564403]
[1757634229645,0.1268,4460.5,4459.9,0.22421]
[1757634229848,0.4443,4460.5,4459.8,44.63985403]
[1757634230044,0.4443,4460.5,4459.8,44.41564403]
[1757634230346,0.3175,4460.4,4459.8,44.63985403]
[1757634230749,0.3175,4460.4,4459.8,44.41564403]
[1757634231450,0.3175,4459.9,4459.8,44.0078]
[1757634231742,0.3175,4459.9,4459.8,44.2338]
[1757634234749,0.4443,4460.0,4459.8,44.2338]
[1757634236458,0.1268,4460.0,4459.8,44.2338]
[1757634236753,0.3175,4459.9,4459.8,44.2338]
[1757634237359,0.3175,4460.2,4459.8,48.2338]
[1757634237549,0.3175,4460.2,4459.8,44.2338]
[1757634237748,0.3106,4460.4,4459.8,44.2338]
[1757634237955,0.3106,4460.4,4460.3,3.2078]
[1757634238151,0.3106,4460.4,4460.3,3.4338]
[1757634243960,0.7189,4460.4,4460.3,3.4338]
[1757634244450,0.7189,4460.4,4460.3,3.2078]
[1757634244652,0.7189,4460.4,4460.3,3.4338]
[1757634246461,0.5072,4460.4,4460.3,3.4338]
[1757634247556,0.7189,4460.4,4460.3,3.2078]
[1757634247762,0.7189,4460.4,4460.3,3.4338]
[1757634253158,0.3106,4460.4,4460.3,3.4338]
[1757634255273,0.10041911,4460.4,4460.3,3.60906546]
[1757634257357,0.10041911,4460.4,4460.3,5.60083467]
[1757634257968,0.10041911,4460.4,4460.3,5.42556921]
[1757634258366,0.10041911,4460.4,4460.3,3.4338]
[1757634260067,0.10041911,4460.4,4460.3,3.61033069]
[1757634265281,0.0170408,4460.5,4460.4,0.1995]
[1757634265467,0.1178,4461.0,4460.4,2.62288837]
[1757634265668,0.5261,4461.0,4460.9,0.1956]
[1757634265974,0.5261,4461.0,4460.9,0.4206]
[1757634267474,0.8367,4461.0,4460.9,0.4206]
[1757634267672,0.6252,4461.0,4460.9,0.8351]
[1757634268272,0.6252,4461.0,4460.9,41.6351]
[1757634268673,0.0743,4461.5,4460.9,41.6351]
[1757634268872,0.5711,4461.5,4461.4,0.4139]
[1757634269080,0.7702,4461.5,4461.4,0.6389]
[1757634272685,0.7702,4461.5,4461.4,0.8379]
[1757634273186,0.7702,4461.5,4461.4,0.6389]
[1757634282995,0.7702,4461.5,4461.4,0.4335]
[1757634289787,0.7702,4461.5,4461.4,0.6389]
[1757634295795,0.5711,4461.5,4461.4,0.8378]
[1757634297692,0.7702,4461.5,4461.4,0.6389]
[1757634299300,0.3,4461.5,4461.4,0.8384]
[1757634300297,0.6155,4461.5,4461.4,0.6389]
[1757634300505,0.8145,4461.5,4461.4,0.6389]
[1757634301097,3.2078,4461.8,4461.4,0.8384]
[1757634301302,0.4937,4461.9,4461.8,0.5926]
[1757634301495,0.4937,4461.9,4461.8,0.8176]
[1757634303497,0.4937,4461.9,4461.8,2.38761916]
[1757634304000,0.6927,4461.9,4461.8,2.38761916]
[1757634304799,0.6927,4461.9,4461.8,2.58711916]
[1757634305005,0.6927,4461.9,4461.8,2.19091916]
[1757634305300,0.6927,4461.9,4461.8,1.99451916]
[1757634305700,0.6927,4461.9,4461.8,2.19091916]
[1757634308611,0.4937,4461.9,4461.8,2.58711916]
[1757634308806,0.4937,4462.4,4462.3,0.3931]
[1757634309109,0.6927,4462.4,4462.3,0.225]
[1757634309404,0.6927,4462.4,4462.3,41.025]
[1757634309599,0.6927,4462.4,4462.3,41.2245]
[1757634310406,0.4937,4462.4,4462.3,41.2245]
[1757634311500,0.4937,4462.4,4462.3,41.025]
[1757634311697,0.6927,4461.9,4461.8,1.76951916]
[1757634311897,0.6927,4461.9,4461.8,0.225]
[1757634312093,0.6927,4461.9,4461.8,41.025]
[1757634314502,0.4937,4461.9,4461.8,41.2245]
[1757634314701,0.3113,4462.5,4462.4,0.5926]
[1757634314904,0.3113,4462.5,4462.4,0.8176]
[1757634315104,0.1166,4463.0,4462.8,0.3931]
[1757634315303,0.2993,4462.9,4462.8,3.6009]
[1757634315505,0.2993,4462.9,4462.8,3.8259]
[1757634315704,0.2993,4462.9,4462.8,4.0254]
[1757634316307,0.4937,4462.9,4462.8,3.8259]
[1757634316495,0.6927,4462.9,4462.8,0.225]
[1757634317101,0.6927,4462.9,4462.8,0.4214]
[1757634322613,0.6927,4462.9,4462.8,0.6181]
[1757634323913,0.3934,4462.4,4462.3,3.2078]
[1757634324116,0.6927,4462.4,4462.3,3.4328]
[1757634324510,0.6927,4462.4,4462.3,3.6292]
[1757634324710,0.4937,4462.4,4462.3,4.0254]
[1757634328916,0.4937,4462.4,4462.3,3.8259]
[1757634329118,0.6963,4462.4,4462.3,3.8259]
[1757634330121,0.4937,4462.4,4462.3,4.0245]
[1757634330822,0.2993,4462.4,4462.3,4.0245]
[1757634331022,3.7252,4463.0,4462.9,0.2083]
[1757634331224,4.0199,4463.0,4462.9,0.4211]
[1757634331424,0.6095,4463.0,4462.9,0.6197]
[1757634332742,0.8121,4463.0,4462.9,0.4211]
[1757634332925,0.8121,4463.0,4462.9,0.6197]
[1757634334226,0.4113,4463.0,4462.9,0.6197]
[1757634335319,0.4113,4463.0,4462.9,41.4197]
[1757634337024,0.2947,4463.0,4462.9,41.4197]
[1757634338029,0.416,4463.0,4462.9,41.2211]
[1757634338525,0.416,4463.0,4462.9,41.4197]
[1757634339930,0.2947,4463.0,4462.9,41.4197]
[1757634341335,0.416,4463.0,4462.9,41.4197]
[1757634341735,0.416,4463.0,4462.9,41.0083]
[1757634341940,0.416,4463.0,4462.9,41.2333]
[1757634344332,0.416,4463.0,4462.9,41.4319]
[1757634347940,0.416,4463.0,4462.9,41.2333]
[1757634348639,0.416,4463.0,4462.9,41.4319]
[1757634349329,0.2947,4463.0,4462.9,41.4319]
[1757634350036,0.3193,4463.5,4463.4,0.6197]
[1757634350338,3.2078,4463.7,4463.5,0.1986]
[1757634350536,3.5025,4463.7,4463.6,0.8447]
[1757634351437,3.7007,4463.7,4463.6,0.8447]
[1757634351641,0.2947,4463.7,4463.6,0.8447]
[1757634352242,0.4929,4463.7,4463.6,0.8447]
[1757634353239,0.2947,4463.7,4463.6,0.8447]
[1757634353537,3.2078,4464.4,4463.7,0.199]
[1757634353742,0.614,4464.0,4463.9,0.6201]
[1757634356341,0.614,4464.0,4463.9,0.4211]
[1757634356742,0.8166,4464.0,4463.9,0.4211]
[1757634358141,0.8166,4464.0,4463.9,0.2083]
[1757634358737,0.8166,4464.0,4463.8,0.225]
[1757634360344,0.7272,4463.2,4463.1,0.2145]
[1757634361036,0.7272,4463.2,4463.1,0.4194]
[1757634362346,0.7272,4463.2,4463.1,0.618]
[1757634362539,0.5199,4463.2,4463.1,0.618]
[1757634362753,0.3207,4463.2,4463.1,0.618]
[1757634362941,0.3207,4463.4,4463.1,0.4194]
[1757634363245,0.3207,4463.4,4463.3,0.618]
[1757634363445,0.3207,4463.4,4463.3,0.843]
[1757634363647,3.2078,4463.9,4463.3,0.843]
[1757634363648,3.407,4463.9,4463.8,0.618]
[1757634364240,3.7277,4463.9,4463.8,0.618]
[1757634365048,0.3207,4463.9,4463.8,0.618]
[1757634365743,0.3207,4463.9,4463.8,41.418]
[1757634365946,0.5199,4464.3,4464.2,0.618]
[1757634366146,0.5199,4464.3,4464.2,0.843]
[1757634366644,0.5199,4464.3,4464.2,41.4444]
[1757634368353,0.5199,4464.3,4464.2,41.643]
[1757634369247,0.5199,4464.3,4464.2,41.4444]
[1757634371558,0.5199,4464.3,4464.2,41.643]
[1757634371856,0.5199,4464.3,4464.2,41.4444]
[1757634373353,0.7272,4464.3,4463.9,3.2078]
[1757634373562,0.7272,4463.7,4463.6,0.2145]
[1757634373750,0.7272,4463.7,4463.6,0.4395]
[1757634373949,0.7272,4463.7,4463.6,41.2395]
[1757634375852,0.7272,4463.7,4463.6,0.225]
[1757634376056,0.4065,4463.4,4463.3,0.225]
[1757634376354,0.7272,4463.4,4463.3,41.025]
[1757634376755,0.7272,4463.4,4463.3,0.225]
[1757634377950,0.4065,4462.8,4462.7,0.2145]
[1757634378162,0.4065,4462.8,4462.1,3.2078]
[1757634378163,0.5236,4462.5,4462.4,0.225]
[1757634378351,0.8443,4462.5,4462.4,0.225]
[1757634381265,0.8443,4462.5,4462.4,0.4395]
[1757634381960,0.8443,4462.5,4462.4,0.225]
[1757634384971,0.8443,4462.5,4462.0,40.8]
[1757634385269,0.7272,4462.1,4462.0,41.025]
[1757634386281,0.7272,4462.1,4462.0,0.225]
[1757634387075,0.7272,4462.1,4461.6,40.8]
[1757634387076,0.4378,4462.0,4461.6,40.8]
[1757634387386,0.8443,4462.0,4461.9,0.225]
[1757634387866,4.0521,4462.0,4461.9,0.225]